fUST/lending_fUST_20250101
["ID","MTS","AMOUNT","RATE_DAILY","PERIOD"]
[347289795,1735661435965,-1109.65,0.00019178,2]
[347289796,1735661435974,-500.0,0.00019178,2]
[347289797,1735661435983,-500.0,0.00019178,2]
[347289798,1735661435992,-500.0,0.00019178,2]
[347289799,1735661436002,-500.0,0.00019178,2]
[347289800,1735661436011,-500.0,0.00019178,2]
[347289801,1735661436020,-1178.99,0.00019178,2]
[347289802,1735661436030,-1108.09,0.00019178,2]
[347289803,1735661436038,-500.0,0.00019178,2]
[347289804,1735661436048,-847.98,0.00019178,2]
[347289805,1735661436058,-500.0,0.00019178,2]
[347289806,1735661436067,-552.59601476,0.00019178,2]
[347289807,1735661436076,-500.0,0.00019178,2]
[347289808,1735661436086,-500.0,0.00019178,2]
[347289809,1735661436097,-500.0,0.00019178,2]
[347289810,1735661436106,-500.0,0.00019178,2]
[347289811,1735661436116,-1048.17,0.00019178,2]
[347289812,1735661436125,-500.0,0.00019178,2]
[347289813,1735661436134,-500.0,0.00019178,2]
[347289814,1735661436143,-500.0,0.00019178,2]
[347289815,1735661436153,-500.0,0.00019178,2]
[347289816,1735661436162,-500.0,0.00019178,2]
[347289817,1735661436172,-500.0,0.00019178,2]
[347289818,1735661436181,-500.0,0.00019178,2]
[347289819,1735661436190,-500.0,0.00019178,2]
[347289820,1735661436200,-1927.77,0.00019178,2]
[347289821,1735661436208,-500.0,0.00019178,2]
[347289822,1735661436218,-500.77834914,0.00019178,2]
[347289823,1735661436228,-500.0,0.00019178,2]
[347289824,1735661436236,-500.0,0.00019178,2]
[347289825,1735661436246,-500.0,0.00019178,2]
[347289826,1735661436255,-500.0,0.00019178,2]
[347289827,1735661436264,-1024.64,0.00019178,2]
[347289828,1735661436273,-500.0,0.00019178,2]
[347289829,1735661436282,-505.2878855,0.00019178,2]
[347289830,1735661436292,-500.0,0.00019178,2]
[347289831,1735661436301,-500.0,0.00019178,2]
[347289832,1735661436310,-578.62848048,0.00019178,2]
[347289833,1735661436319,-500.0,0.00019178,2]
[347289834,1735661436329,-500.0,0.00019178,2]
[347289835,1735661436338,-500.0,0.00019178,2]
[347289836,1735661436347,-500.0,0.00019178,2]
[347289837,1735661436356,-4979.57,0.00019178,2]
[347289838,1735661436369,-4979.57,0.00019178,2]
[347289839,1735661436378,-4979.57,0.00019178,2]
[347289840,1735661436387,-4979.57,0.00019178,2]
[347289841,1735661436396,-4979.57,0.00019178,2]
[347289842,1735661436407,-500.0,0.00019178,2]
[347289843,1735661436416,-4979.57,0.00019178,2]
[347289844,1735661436425,-4979.57,0.00019178,2]
[347289845,1735661436435,-4979.57,0.00019178,2]
[347289846,1735661436445,-4979.57,0.00019178,2]
[347289847,1735661436455,-501.18025801,0.00019178,2]
[347289848,1735661436464,-4979.57,0.00019178,2]
[347289849,1735661436473,-4979.57,0.00019178,2]
[347289850,1735661436483,-4979.57,0.00019178,2]
[347289851,1735661436492,-4979.57,0.00019178,2]
[347289852,1735661436501,-4979.57,0.00019178,2]
[347289853,1735661436511,-4979.57,0.00019178,2]
[347289854,1735661436520,-4979.57,0.00019178,2]
[347289855,1735661436529,-4979.57,0.00019178,2]
[347289856,1735661436539,-4979.57,0.00019178,2]
[347289857,1735661436547,-4979.57,0.00019178,2]
[347289858,1735661436557,-500.0,0.00019178,2]
[347289859,1735661436566,-4979.57,0.00019178,2]
[347289860,1735661436575,-4979.57,0.00019178,2]
[347289861,1735661436583,-4979.57,0.00019178,2]
[347289862,1735661436592,-4979.57,0.00019178,2]
[347289863,1735661436602,-4979.64703881,0.00019178,2]
[347289864,1735661436611,-500.0,0.00019178,2]
[347289865,1735661436620,-500.0,0.00019178,2]
[347289866,1735661436629,-500.0,0.00019178,2]
[347289867,1735661436638,-500.0,0.00019178,2]
[347289868,1735661436648,-500.0,0.00019178,2]
[347289869,1735661436657,-500.0,0.00019178,2]
[347289870,1735661436667,-515.72781519,0.00019178,2]
[347289871,1735661436676,-4519.05,0.00019178,2]
[347289872,1735661436686,-500.0,0.00019178,2]
[347289873,1735661436695,-8021.16,0.00019178,2]
[347289874,1735661436705,-500.0,0.00019178,2]
[347289875,1735661436715,-1145.51,0.00019178,2]
[347289876,1735661436725,-500.0,0.00019178,2]
[347289877,1735661436734,-500.0,0.00019178,2]
[347289878,1735661436744,-1136.29,0.00019178,2]
[347289879,1735661436754,-584.42624184,0.00019178,2]
[347289880,1735661436763,-500.0,0.00019178,2]
[347289881,1735661436772,-65013.37,0.00019178,2]
[347289882,1735661436782,-500.0,0.00019178,2]
[347289883,1735661436791,-1121.29,0.00019178,2]
[347289884,1735661436801,-204.60814057,0.00019178,2]
[347289885,1735661436810,-500.0,0.00019178,2]
[347289886,1735661436820,-503.48860913,0.00019178,2]
[347289887,1735661436829,-500.0,0.00019178,2]
[347289888,1735661436839,-500.0,0.00019178,2]
[347289889,1735661436848,-1968.63,0.00019178,2]
[347289890,1735661436857,-501.30820338,0.00019178,2]
[347289891,1735661436867,-612.07397462,0.00019178,2]
[347289892,1735661436876,-500.0,0.00019178,2]
[347289893,1735661436885,-500.0,0.00019178,2]
[347289894,1735661436894,-809.68,0.00019178,2]
[347289895,1735661436903,-500.0,0.00019178,2]
[347289896,1735661436912,-500.0,0.00019178,2]
[347289897,1735661436921,-500.0,0.00019178,2]
[347289898,1735661436931,-500.0,0.00019178,2]
[347289899,1735661436940,-500.0,0.00019178,2]
[347289900,1735661436950,-500.0,0.00019178,2]
[347289901,1735661436960,-500.0,0.00019178,2]
[347289902,1735661436970,-1550.4,0.00019178,2]
[347289903,1735661436979,-500.0,0.00019178,2]
[347289904,1735661436988,-500.0,0.00019178,2]
[347289905,1735661436997,-500.0,0.00019178,2]
[347289906,1735661437006,-500.0,0.00019178,2]
[347289907,1735661437015,-500.0,0.00019178,2]
[347289908,1735661437026,-500.0,0.00019178,2]
[347289909,1735661437035,-500.0,0.00019178,2]
[347289910,1735661437044,-502.29574935,0.00019178,2]
[347289911,1735661437053,-530.4,0.00019178,2]
[347289912,1735661437062,-2158.66,0.00019178,2]
[347289913,1735661437071,-500.0,0.00019178,2]
[347289914,1735661437080,-1473.63,0.00019178,2]
[347289915,1735661437089,-500.0,0.00019178,2]
[347289916,1735661437099,-500.0,0.00019178,2]
[347289917,1735661437108,-500.0,0.00019178,2]
[347289918,1735661437117,-500.0,0.00019178,2]
[347289919,1735661437126,-573.83,0.00019178,2]
[347289920,1735661437136,-2655.97,0.00019178,2]
[347289921,1735661437146,-500.0,0.00019178,2]
[347289922,1735661437155,-3950.74,0.00019178,2]
[347289923,1735661437165,-500.0,0.00019178,2]
[347289924,1735661437174,-500.0,0.00019178,2]
[347289925,1735661437184,-500.0,0.00019178,2]
[347289926,1735661437194,-616.04,0.00019178,2]
[347289927,1735661437203,-500.0,0.00019178,2]
[347289928,1735661437212,-1347.08,0.00019178,2]
[347289929,1735661437222,-582.04,0.00019178,2]
[347289930,1735661437231,-500.0,0.00019178,2]
[347289931,1735661437240,-2679.18,0.00019178,2]
[347289932,1735661437250,-500.0,0.00019178,2]
[347289933,1735661437259,-500.0,0.00019178,2]
[347289934,1735661437268,-500.0,0.00019178,2]
[347289935,1735661437280,-500.0,0.00019178,2]
[347289936,1735661437290,-500.0,0.00019178,2]
[347289937,1735661437299,-501.35,0.00019178,2]
[347289938,1735661437308,-2250.33,0.00019178,2]
[347289939,1735661437317,-319.11514127,0.00019178,2]
[347289940,1735661437327,-500.0,0.00019178,2]
[347289941,1735661437336,-500.0,0.00019178,2]
[347289942,1735661437346,-500.0,0.00019178,2]
[347289943,1735661437355,-7998.46,0.00019178,2]
[347289944,1735661437365,-518.84431296,0.00019178,2]
[347289945,1735661437376,-500.0,0.00019178,2]
[347289946,1735661437386,-500.0,0.00019178,2]
[347289947,1735661437395,-500.0,0.00019178,2]
[347289948,1735661437404,-4164.95,0.00019178,2]
[347289949,1735661437414,-500.0,0.00019178,2]
[347289950,1735661437423,-500.0,0.00019178,2]
[347289951,1735661437433,-500.0,0.00019178,2]
[347289952,1735661437443,-978.68,0.00019178,2]
[347289953,1735661437452,-1300.52,0.00019178,2]
[347289954,1735661437461,-501.66032188,0.00019178,2]
[347289955,1735661437470,-5506.96,0.00019178,2]
[347289956,1735661437480,-500.0,0.00019178,2]
[347289957,1735661437489,-615.25706215,0.00019178,2]
[347289958,1735661437499,-500.0,0.00019178,2]
[347289959,1735661437508,-500.0,0.00019178,2]
[347289960,1735661437518,-502.17580269,0.00019178,2]
[347289961,1735661437528,-500.0,0.00019178,2]
[347289962,1735661437629,-500.0,0.00019178,2]
[347289963,1735661437639,-500.0,0.00019178,2]
[347289964,1735661437651,-500.0,0.00019178,2]
[347289965,1735661437660,-500.0,0.00019178,2]
[347289966,1735661437670,-1292.21,0.00019178,2]
[347289967,1735661437680,-541.58724417,0.00019178,2]
[347289968,1735661437689,-500.0,0.00019178,2]
[347289969,1735661437698,-500.0,0.00019178,2]
[347289970,1735661437708,-2677.01,0.00019178,2]
[347289971,1735661437717,-500.0,0.00019178,2]
[347289972,1735661437727,-506.5,0.00019178,2]
[347289973,1735661437737,-994.67,0.00019178,2]
[347289974,1735661437746,-683.72,0.00019178,2]
[347289975,1735661437755,-1506.58,0.00019178,2]
[347289976,1735661437765,-500.0,0.00019178,2]
[347289977,1735661437774,-518.5859297,0.00019178,2]
[347289978,1735661437783,-506.08219354,0.00019178,2]
[347289979,1735661437793,-500.0,0.00019178,2]
[347289980,1735661437803,-500.0,0.00019178,2]
[347289981,1735661437812,-546.65630129,0.00019178,2]
[347289982,1735661437822,-500.0,0.00019178,2]
[347289983,1735661437831,-500.0,0.00019178,2]
[347289984,1735661437841,-1841.0,0.00019178,2]
[347289985,1735661437851,-1014.84,0.00019178,2]
[347289986,1735661437860,-802.05,0.00019178,2]
[347289987,1735661437870,-500.0,0.00019178,2]
[347289988,1735661437880,-500.0,0.00019178,2]
[347289989,1735661437889,-500.0,0.00019178,2]
[347289990,1735661437899,-2385.64,0.00019178,2]
[347289991,1735661437908,-1385.29,0.00019178,2]
[347289992,1735661437917,-500.0,0.00019178,2]
[347289994,1735661437927,-450.31665735,0.00019255,2]
[347289996,1735661437936,-151.0,0.000193,2]
[347289997,1735661437945,-151.0,0.000193,2]
[347289998,1735661437955,-151.0,0.000193,2]
[347289999,1735661437964,-153.0,0.00019315,2]
[347290000,1735661437974,-307.018901,0.00019315,2]
[347290001,1735661437983,-428.5290742,0.00019315,2]
[347290002,1735661437992,-153.0,0.00019315,2]
[347290003,1735661438002,-153.0,0.00019315,2]
[347290004,1735661438011,-153.0,0.00019315,2]
[347290005,1735661438020,-153.0,0.00019315,2]
[347290006,1735661438029,-153.0,0.00019315,2]
[347290007,1735661438038,-153.0,0.00019315,2]
[347290008,1735661438047,-151.0,0.000194,2]
[347290010,1735661438057,-151.0,0.000194,2]
[347290011,1735661438066,-151.0,0.000194,2]
[347290012,1735661438075,-210.8374416,0.000194,2]
[347290013,1735661438084,-450.31665735,0.00019431,2]
[347290014,1735661438094,-416.42338972,0.00019451,2]
[347290015,1735661438103,-500.0,0.00019451,2]
[347290016,1735661438113,-289.96356665,0.00019451,2]
[347290017,1735661438123,-500.0,0.00019452,3]
[347290018,1735661438132,-500.0,0.00019452,3]
[347290019,1735661438141,-500.0,0.00019452,3]
[347290020,1735661438151,-500.0,0.00019452,3]
[347290021,1735661438160,-500.0,0.00019452,3]
[347290022,1735661438169,-500.0,0.00019452,3]
[347290023,1735661438179,-500.0,0.00019452,3]
[347290024,1735661438189,-500.0,0.00019452,3]
[347290025,1735661438198,-500.0,0.00019452,3]
[347290026,1735661438208,-500.0,0.00019452,3]
[347290027,1735661438217,-500.0,0.00019452,3]
[347290028,1735661438226,-674.34,0.00019452,3]
[347290030,1735661438236,-851.68,0.00019452,3]
[347290032,1735661438245,-500.0,0.00019452,3]
[347290033,1735661438254,-500.0,0.00019452,3]
[347290034,1735661438263,-504.96294223,0.00019452,3]
[347290035,1735661438272,-500.0,0.00019452,3]
[347290036,1735661438283,-500.0,0.00019452,3]
[347290038,1735661438291,-500.0,0.00019452,3]
[347290039,1735661438300,-313.54041614,0.00019452,3]
[347290040,1735661438311,-500.0,0.00019452,3]
[347290041,1735661438320,-500.0,0.00019452,3]
[347290042,1735661438329,-500.0,0.00019452,3]
[347290043,1735661438338,-500.0,0.00019452,3]
[347290044,1735661438347,-503.14853731,0.00019452,3]
[347290046,1735661438356,-500.0,0.00019452,3]
[347290047,1735661438367,-1016.53174185,0.00019452,3]
[347290048,1735661438377,-634.64320052,0.00019452,3]
[347290049,1735661438386,-498.7377758,0.00019452,3]
[347290050,1735661438395,-500.0,0.00019452,3]
[347290051,1735661438404,-500.0,0.00019452,3]
[347290052,1735661438414,-500.0,0.00019452,3]
[347290053,1735661438423,-500.0,0.00019452,3]
[347290054,1735661438432,-500.0,0.00019452,3]
[347290056,1735661438442,-500.0,0.00019452,3]
[347290058,1735661438451,-500.84389074,0.00019452,3]
[347290059,1735661438461,-511.089077,0.00019452,3]
[347290060,1735661438470,-188.0,0.00019452,2]
[347290061,1735661438480,-445.97792556,0.00019452,3]
[347290062,1735661438490,-504.48975836,0.00019452,3]
[347290063,1735661438499,-443.20052368,0.00019452,3]
[347290064,1735661438508,-500.0,0.00019452,3]
[347290065,1735661438517,-500.0,0.00019452,3]
[347290066,1735661438529,-500.0,0.00019452,3]
[347290067,1735661438538,-500.0,0.00019452,3]
[347290068,1735661438548,-502.31160301,0.00019452,3]
[347290069,1735661438557,-515.33747752,0.00019452,3]
[347290070,1735661438566,-500.0,0.00019452,3]
[347290071,1735661438575,-656.65,0.00019452,3]
[347290073,1735661438584,-500.0,0.00019452,3]
[347290075,1735661438594,-500.0,0.00019452,3]
[347290077,1735661438602,-500.0,0.00019452,3]
[347290078,1735661438611,-587.82,0.00019452,3]
[347290079,1735661438622,-500.0,0.00019452,3]
[347290082,1735661438632,-500.0,0.00019452,3]
[347290085,1735661438641,-517.53,0.00019452,3]
[347290087,1735661438651,-500.0,0.00019452,3]
[347290089,1735661438660,-510.30871955,0.00019452,3]
[347290090,1735661438670,-500.0,0.00019452,3]
[347290091,1735661438679,-500.0,0.00019452,3]
[347290092,1735661438689,-500.0,0.00019452,3]
[347290093,1735661438699,-482.47538249,0.00019452,3]
[347290094,1735661438708,-642.99,0.00019452,3]
[347290095,1735661438718,-500.0,0.00019452,3]
[347290096,1735661438727,-500.0,0.00019452,3]
[347290097,1735661438737,-500.0,0.00019452,3]
[347290098,1735661438747,-1034.12,0.00019452,3]
[347290099,1735661438756,-500.0,0.00019452,3]
[347290100,1735661438766,-500.0,0.00019452,3]
[347290101,1735661438776,-500.0,0.00019452,3]
[347290102,1735661438785,-500.0,0.00019452,3]
[347290103,1735661438794,-500.0,0.00019452,3]
[347290104,1735661438804,-500.0,0.00019452,3]
[347290105,1735661438813,-500.0,0.00019452,3]
[347290106,1735661438822,-500.0,0.00019452,3]
[347290107,1735661438831,-500.0,0.00019452,3]
[347290108,1735661438843,-500.0,0.00019452,3]
[347290109,1735661438852,-503.16550677,0.00019452,3]
[347290110,1735661438862,-500.0,0.00019452,3]
[347290111,1735661438871,-500.0,0.00019452,3]
[347290112,1735661438882,-500.0,0.00019452,3]
[347290113,1735661438891,-500.0,0.00019452,3]
[347290114,1735661438901,-500.0,0.00019452,3]
[347290115,1735661438910,-500.0,0.00019452,3]
[347290116,1735661438920,-646.93,0.00019452,3]
[347290117,1735661438928,-500.0,0.00019452,3]
[347290118,1735661438938,-500.0,0.00019452,3]
[347290119,1735661438947,-500.0,0.00019452,3]
[347290120,1735661438957,-1221.1,0.00019452,3]
[347290121,1735661438966,-500.0,0.00019452,3]
[347290122,1735661438975,-500.0,0.00019452,3]
[347290123,1735661438984,-500.0,0.00019452,3]
[347290124,1735661438994,-503.7417894,0.00019452,3]
[347290125,1735661439003,-501.6776997,0.00019452,3]
[347290126,1735661439013,-617.48,0.00019452,3]
[347290127,1735661439022,-500.0,0.00019452,3]
[347290128,1735661439033,-500.0,0.00019452,3]
[347290129,1735661439042,-500.0,0.00019452,3]
[347290130,1735661439052,-500.0,0.00019452,3]
[347290131,1735661439061,-500.0,0.00019452,3]
[347290132,1735661439070,-502.22260824,0.00019452,3]
[347290133,1735661439079,-500.0,0.00019452,3]
[347290134,1735661439088,-500.0,0.00019452,3]
[347290135,1735661439097,-500.0,0.00019452,3]
[347290136,1735661439107,-500.0,0.00019452,3]
[347290137,1735661439116,-1114.5,0.00019452,3]
[347290138,1735661439124,-500.0,0.00019452,3]
[347290139,1735661439133,-500.0,0.00019452,3]
[347290140,1735661439143,-500.0,0.00019452,3]
[347290141,1735661439152,-500.0,0.00019452,3]
[347290142,1735661439161,-500.0,0.00019452,3]
[347290143,1735661439171,-500.0,0.00019452,3]
[347290144,1735661439181,-500.0,0.00019452,3]
[347290145,1735661439190,-500.0,0.00019452,3]
[347290146,1735661439199,-500.0,0.00019452,3]
[347290147,1735661439210,-500.0,0.00019452,3]
[347290148,1735661439219,-505.57412992,0.00019452,3]
[347290149,1735661439228,-500.0,0.00019452,3]
[347290150,1735661439237,-500.0,0.00019452,3]
[347290151,1735661439246,-500.0,0.00019452,3]
[347290152,1735661439256,-569.91,0.00019452,3]
[347290153,1735661439265,-1068.13,0.00019452,3]
[347290154,1735661439273,-500.0,0.00019452,3]
[347290155,1735661439282,-500.0,0.00019452,3]
[347290156,1735661439291,-500.0,0.00019452,3]
[347290157,1735661439300,-500.0,0.00019452,3]
[347290158,1735661439309,-500.0,0.00019452,3]
[347290159,1735661439318,-500.0,0.00019452,3]
[347290160,1735661439327,-602.49,0.00019452,3]
[347290161,1735661439335,-500.0,0.00019452,3]
[347290162,1735661439344,-500.0,0.00019452,3]
[347290163,1735661439353,-500.0,0.00019452,3]
[347290164,1735661439449,-500.0,0.00019452,3]
[347290165,1735661439458,-500.0,0.00019452,3]
[347290166,1735661439467,-500.0,0.00019452,3]
[347290167,1735661439476,-2228.93,0.00019452,3]
[347290168,1735661439485,-500.0,0.00019452,3]
[347290169,1735661439494,-500.0,0.00019452,3]
[347290170,1735661439503,-634.26002248,0.00019452,3]
[347290171,1735661439511,-500.0,0.00019452,3]
[347290172,1735661439520,-500.0,0.00019452,3]
[347290173,1735661439530,-500.0,0.00019452,3]
[347290174,1735661439539,-532.25,0.00019452,3]
[347290175,1735661439548,-500.0,0.00019452,3]
[347290176,1735661439556,-1199.79,0.00019452,3]
[347290177,1735661439565,-500.0,0.00019452,3]
[347290178,1735661439574,-500.0,0.00019452,3]
[347290179,1735661439583,-500.0,0.00019452,3]
[347290180,1735661439592,-500.0,0.00019452,3]
[347290181,1735661439602,-569.97914626,0.00019452,3]
[347290182,1735661439611,-542.86680987,0.00019452,3]
[347290183,1735661439620,-500.0,0.00019452,3]
[347290184,1735661439628,-500.0,0.00019452,3]
[347290185,1735661439637,-547.51,0.00019452,3]
[347290186,1735661439645,-501.85308814,0.00019452,3]
[347290187,1735661439654,-500.0,0.00019452,3]
[347290188,1735661439663,-500.0,0.00019452,3]
[347290189,1735661439673,-500.0,0.00019452,3]
[347290190,1735661439682,-551.21,0.00019452,3]
[347290191,1735661439691,-598.43560107,0.00019452,3]
[347290192,1735661439701,-740.05,0.00019452,3]
[347290193,1735661439710,-500.0,0.00019452,3]
[347290194,1735661439719,-500.0,0.00019452,3]
[347290195,1735661439730,-500.0,0.00019452,3]
[347290196,1735661439740,-500.0,0.00019452,3]
[347290197,1735661439749,-520.31762951,0.00019452,3]
[347290198,1735661439758,-500.0,0.00019452,3]
[347290199,1735661439767,-500.0,0.00019452,3]
[347290200,1735661439777,-500.0,0.00019452,3]
[347290201,1735661439786,-509.30925834,0.00019452,3]
[347290202,1735661439795,-500.0,0.00019452,3]
[347290203,1735661439805,-1229.43,0.00019452,3]
[347290204,1735661439814,-501.539267,0.00019452,3]
[347290205,1735661439823,-500.0,0.00019452,3]
[347290206,1735661439833,-500.0,0.00019452,3]
[347290207,1735661439842,-500.0,0.00019452,3]
[347290208,1735661439851,-549.0,0.00019452,3]
[347290209,1735661439860,-500.0,0.00019452,3]
[347290210,1735661439870,-500.0,0.00019452,3]
[347290211,1735661439879,-500.0,0.00019452,3]
[347290212,1735661439888,-500.0,0.00019452,3]
[347290213,1735661439897,-504.97260899,0.00019452,3]
[347290214,1735661439906,-500.0,0.00019452,3]
[347290215,1735661439915,-500.0,0.00019452,3]
[347290216,1735661439924,-500.0,0.00019452,3]
[347290217,1735661439933,-500.0,0.00019452,3]
[347290218,1735661439942,-586.5,0.00019452,3]
[347290219,1735661439951,-500.0,0.00019452,3]
[347290220,1735661439960,-500.0,0.00019452,3]
[347290221,1735661439969,-500.0,0.00019452,3]
[347290222,1735661439978,-500.0,0.00019452,3]
[347290223,1735661439988,-503.69392357,0.00019452,3]
[347290224,1735661439997,-745.96,0.00019452,3]
[347290225,1735661440006,-500.0,0.00019452,3]
[347290226,1735661440015,-500.0,0.00019452,3]
[347290227,1735661440025,-500.0,0.00019452,3]
[347290228,1735661440034,-501.27969122,0.00019452,3]
[347290229,1735661440044,-500.0,0.00019452,3]
[347290230,1735661440052,-500.0,0.00019452,3]
[347290233,1735661440062,-822.43,0.00019452,3]
[347290236,1735661440071,-500.0,0.00019452,3]
[347290240,1735661440080,-861.4,0.00019452,3]
[347290242,1735661440089,-522.54,0.00019452,3]
[347290243,1735661440098,-669.67,0.00019452,3]
[347290244,1735661440108,-431.3908509,0.00019452,3]
[347290245,1735661440117,-500.0,0.00019452,3]
[347290246,1735661440126,-500.0,0.00019452,3]
[347290247,1735661440135,-730.3,0.00019452,2]
[347290248,1735661440144,-500.0,0.00019452,2]
[347290249,1735661440153,-834.47,0.00019452,3]
[347290250,1735661440162,-500.0,0.00019452,3]
[347290251,1735661440171,-500.0,0.00019452,3]
[347290252,1735661440181,-502.7271545,0.00019452,3]
[347290253,1735661440190,-500.0,0.00019452,3]
[347290254,1735661440199,-500.79908232,0.00019452,3]
[347290255,1735661440208,-583.25,0.00019452,3]
[347290256,1735661440218,-500.0,0.00019452,3]
[347290257,1735661440227,-500.0,0.00019452,3]
[347290258,1735661440235,-500.0,0.00019452,3]
[347290259,1735661440245,-500.0,0.00019452,3]
[347290260,1735661440254,-500.0,0.00019452,3]
[347290261,1735661440263,-500.0,0.00019452,3]
[347290262,1735661440272,-500.0,0.00019452,3]
[347290263,1735661440283,-500.0,0.00019452,3]
[347290264,1735661440292,-500.0,0.00019452,3]
[347290265,1735661440301,-500.0,0.00019452,3]
[347290266,1735661440310,-500.0,0.00019452,3]
[347290267,1735661440319,-500.0,0.00019452,3]
[347290268,1735661440328,-501.55296053,0.00019452,3]
[347290269,1735661440337,-12341.27,0.00019452,3]
[347290270,1735661440347,-500.0,0.00019452,3]
[347290271,1735661440356,-500.0,0.00019452,3]
[347290272,1735661440366,-1287.03,0.00019452,3]
[347290273,1735661440377,-502.81540685,0.00019452,3]
[347290274,1735661440386,-500.0,0.00019452,3]
[347290275,1735661440396,-500.0,0.00019452,3]
[347290276,1735661440405,-506.17841272,0.00019452,3]
[347290277,1735661440414,-500.0,0.00019452,3]
[347290278,1735661440423,-500.0,0.00019452,3]
[347290279,1735661440433,-500.0,0.00019452,3]
[347290280,1735661440444,-500.0,0.00019452,3]
[347290281,1735661440453,-500.0,0.00019452,3]
[347290282,1735661440463,-844.66,0.00019452,3]
[347290283,1735661440471,-500.0,0.00019452,3]
[347290284,1735661440480,-625.0,0.00019452,3]
[347290285,1735661440489,-500.0,0.00019452,3]
[347290286,1735661440498,-502.86734583,0.00019452,3]
[347290287,1735661440508,-500.0,0.00019452,3]
[347290288,1735661440517,-500.0,0.00019452,3]
[347290289,1735661440528,-500.0,0.00019452,3]
[347290290,1735661440537,-500.0,0.00019452,3]
[347290291,1735661440547,-500.0,0.00019452,3]
[347290292,1735661440557,-500.0,0.00019452,3]
[347290293,1735661440566,-637.4,0.00019452,3]
[347290294,1735661440575,-546.28494321,0.00019452,3]
[347290295,1735661440585,-210.06480154,0.00019452,3]
[347290296,1735661440595,-500.0,0.00019452,3]
[347290297,1735661440607,-509.81683209,0.00019452,3]
[347290298,1735661440619,-500.0,0.00019452,3]
[347290299,1735661440630,-500.0,0.00019452,3]
[347290300,1735661440641,-500.0,0.00019452,3]
[347290301,1735661440653,-500.0,0.00019452,3]
[347290302,1735661440664,-500.0,0.00019452,3]
[347290303,1735661440674,-500.0,0.00019452,3]
[347290304,1735661440683,-500.0,0.00019452,3]
[347290305,1735661440692,-500.0,0.00019452,3]
[347290306,1735661440701,-500.0,0.00019452,3]
[347290307,1735661440711,-500.0,0.00019452,3]
[347290308,1735661440720,-501.1716519,0.00019452,3]
[347290309,1735661440730,-500.0,0.00019452,3]
[347290310,1735661440739,-500.0,0.00019452,3]
[347290311,1735661440748,-354.52678774,0.00019452,3]
[347290312,1735661440758,-500.0,0.00019452,3]
[347290313,1735661440767,-503.71649807,0.00019452,3]
[347290314,1735661440776,-467.49037091,0.00019452,3]
[347290315,1735661440785,-500.0,0.00019452,3]
[347290316,1735661440795,-500.0,0.00019452,3]
[347290317,1735661440805,-500.0,0.00019452,3]
[347290318,1735661440814,-500.0,0.00019452,3]
[347290320,1735661440824,-503.06411982,0.00019452,3]
[347290321,1735661440834,-500.0,0.00019452,3]